Cogmind - Beta 16 @@@ ROGUE MODE // 2026.01.10 @ 13:58:05 Player: leto Result: Destroyed by Y-45 Defender with Heavy Assault Rifle Performance ------------- Evolutions (1) 500 Regions Visited (3) 600 Robots Destroyed (80) 400 Value Destroyed (1983) 1983 Prototype IDs (3) 60 Alien Tech Used (0) 0 Bonus (63) 63 TOTAL SCORE: 3606 Bonus ------- High Alert Combat Kills 63 Cogmind --------- Core Integrity 0/400 Matter 254/300 Energy 97/280 System Corruption 8% Temperature Hot (217) Movement Core (1500) Ox29 Location -9/Materials Parts ------- > --- POWER (1) -------- Heavy Ion Engine > --- PROPULSION (3) --- (None) > --- UTILITY (3) ------ Huge Storage Unit Transport Network Coupler > --- WEAPON (2) ------- Hammer > --- INVENTORY (25) --- Ion Engine Ion Engine VTOL Module VTOL Module Small Storage Unit Sensor Array Signal Interpreter Seismic Detector Hacking Suite Improved EM Shotgun Improved EM Shotgun Improved EM Shotgun Improved Medium Laser Improved Medium Laser Improved Medium Laser Improved Medium Laser Improved Medium Laser Improved Medium Laser Grenade Launcher Grenade Launcher Mini Grenade Launcher Datajack Peak State ------------ > --- POWER ------------ Heavy Ion Engine > --- PROPULSION ------- Light Treads Light Treads Light Treads > --- UTILITY ---------- Huge Storage Unit Transport Network Coupler Light Armor Plating > --- WEAPON ----------- Improved Medium Laser Improved Medium Laser > --- INVENTORY -------- Ion Engine Ion Engine Heavy Ion Engine VTOL Module VTOL Module Small Storage Unit Sensor Array Signal Interpreter Seismic Detector Hacking Suite Improved EM Shotgun Improved EM Shotgun Improved EM Shotgun Improved Medium Laser Improved Medium Laser Improved Medium Laser Improved Medium Laser Improved Medium Laser Improved Medium Laser Improved Medium Laser Grenade Launcher Grenade Launcher Mini Grenade Launcher Datajack Hammer [Rating: 20] Favorites ----------- Power Ion Engine Engine Ion Engine Propulsion Light Treads Treads Light Treads Wheel Wheel Utility Transport Network Coupler Storage Huge Storage Unit Processor Transport Network Coupler Protection Light Armor Plating Weapon Improved Medium Laser Energy Gun Improved Medium Laser Ballistic Gun Assault Rifle Impact Weapon Hammer Build | -11 -10 -10 -9 ------- Run | Yrd Mat Min Mat Slots Evolved 2 | . . . 2 Power . | . . . . Propulsion 1 | . . . 1 Utility 1 | . . . 1 Weapon . | . . . . Parts Attached 38 | 7 6 2 23 Power 7 | 2 1 . 4 Engine 7 | 2 1 . 4 Core . | . . . . Reactor . | . . . . Propulsion 11 | 2 . 2 7 Treads 9 | 2 . . 7 Leg . | . . . . Wheel 2 | . . 2 . Hover . | . . . . Flight . | . . . . Utility 8 | 1 3 . 4 Device . | . . . . Storage 3 | 1 2 . . Processor 1 | . 1 . . Hackware . | . . . . Protection 4 | . . . 4 Artifact . | . . . . Weapon 12 | 2 2 . 8 Energy Gun 7 | . . . 7 Energy Cannon . | . . . . Ballistic Gun 4 | 2 2 . . Ballistic Cannon . | . . . . Launcher . | . . . . Special Weapon . | . . . . Impact Weapon 1 | . . . 1 Slashing Weapon . | . . . . Piercing Weapon . | . . . . Special Melee Weapon . | . . . . Unidentified Prototypes 3 | . . . 3 Parts Lost 16 | . 1 1 14 Power 3 | . . . 3 Propulsion 6 | . . 1 5 Utility 3 | . . . 3 Weapon 4 | . 1 . 3 Highest Loss Streak 4 | . 1 1 4 To Critical Strikes 1 | . . . 1 Average Backups 21 | 1 17 23 24 Power 3 | . 2 3 3 Propulsion 2 | 1 2 2 2 Utility 5 | . 5 8 6 Weapon 9 | . 6 9 11 Tool/Special . | . . . . Unused Backups 32 | . . . 32 Power 3 | . . . 3 Propulsion 3 | . . . 3 Utility 8 | . . . 8 Weapon 17 | . . . 17 Tool/Special 1 | . . . 1 Average Slot Usage (%) 95 | . 97 99 93 Engine 11 | . 14 14 10 Treads 26 | . 27 19 27 Wheel 1 | . . 8 2 Storage 12 | . 14 14 11 Processor 11 | . 12 14 11 Protection 5 | . . . 9 Energy Gun 12 | . . . 19 Ballistic Gun 11 | . 27 28 1 Peak Build Rating 20 | 6 9 9 20 Average Rating 13 | 4 8 8 17 On Entrance 6 | . 6 9 9 Avg Prop Armor Cover (%) 4 | . . 12 3 Naked Turns . | . . . . Heaviest Build 97 | 12 89 89 97 Greatest Support 60 | 40 40 40 60 Greatest Overweight (x) 5 | 3 4 5 4 Average Overweight (x) 1 | . 1 2 1 Largest Inventory Capacity 25 | 8 25 25 25 Average Capacity 23 | 7 21 25 25 Most Carried 25 | 3 24 24 25 Average Carried 21 | 2 17 23 24 Final Capacity 25 | 8 25 25 25 Final Carried 24 | 3 24 23 22 Class Distribution -------------------- 52% | Mutant 47% | Scavenger-Mutant Dominant Class ---------------- Mutant | -10/Materials Mutant | -10/Mines Scavenger-Mutant | -9/Materials Resources | -11 -10 -10 -9 ----------- Run | Yrd Mat Min Mat Matter Collected 920 | 44 488 57 331 Remotely . | . . . . Salvage Created 2946 | . 563 134 2249 Parts 139 | . 31 7 101 Haulers Intercepted 6 | . 2 . 4 Recyclers Shooed 3 | . 3 . . Parts Field Recycled . | . . . . Retrieved Matter . | . . . . Parts Self-Destructed . | . . . . Prevented . | . . . . Parts Restored . | . . . . Kills | -11 -10 -10 -9 ------- Run | Yrd Mat Min Mat Combat Hostiles Destroyed 55 | . 11 4 40 Guns 51 | . 11 4 36 Classes Destroyed 11 | . 5 . 6 Worker 3 | . 1 . 2 Builder 1 | . . . 1 Hauler 6 | . 2 . 4 Recycler 4 | . . . 4 Mechanic 1 | . . . 1 Operator 4 | . . . 4 Watcher 6 | . 2 . 4 Swarmer 11 | . 3 2 6 Grunt 35 | . 8 2 25 Brawler 3 | . . . 3 Sentry 6 | . . . 6 Best Kill Streak 6 | . 4 4 6 Combat Bots Only 5 | . 3 4 5 Max Kills in Single Turn 1 | . 1 1 1 Gunslinging . | . . . . Exploded . | . . . . Melee . | . . . . Uniques/NPCs Destroyed . | . . . . Combat | -11 -10 -10 -9 -------- Run | Yrd Mat Min Mat Hostile Shots Fired 294 | . 64 31 199 Missed 79 | . 20 12 47 Hits 215 | . 44 19 152 Melee 9 | . . . 9 Projectile 206 | . 44 19 143 Critical Strikes 6 | . 2 . 4 Damage Taken 2903 | . 552 175 2176 Core 478 | . 40 23 415 Absorbed by Shields . | . . . . Regen/Repaired (Parts) 85 | . 85 . . Core Remaining (%) 87 | 100 . 74 . Volleys Fired 240 | . 49 7 184 Largest 2 | . 2 2 2 Hottest 112 | . 40 40 112 Shots Fired 392 | . 93 14 285 Gun 392 | . 93 14 285 Cannon . | . . . . Launcher . | . . . . Special . | . . . . Kinetic 119 | . 93 14 12 Thermal 273 | . . . 273 Explosive . | . . . . Electromagnetic . | . . . . Robot Hit Streak 20 | . 16 2 20 Robot Miss Streak 10 | . 3 2 10 Penetration Max . | . . . . Secondary Targets 5 | . 1 . 4 Max Gunslinging Chain 1 | . 1 . 1 Shots Hit Robots 254 | . 63 7 184 Core Hits 101 | . 32 6 63 Critical Kills . | . . . . Critical Parts Destroyed 2 | . 2 . . Critical Strikes 25 | . 2 . 23 Burn 23 | . . . 23 Destroy 2 | . 2 . . Melee Attacks 3 | . . . 3 Impact 3 | . . . 3 Slashing . | . . . . Piercing . | . . . . Sneak Attacks . | . . . . Combat Hostiles . | . . . . Follow-up Attacks . | . . . . Damage Inflicted 3975 | . 677 100 3198 Guns 3910 | . 669 100 3141 Cannons . | . . . . Explosions . | . . . . Melee 11 | . . . 11 Ramming 54 | . 8 . 46 Kinetic 809 | . 669 100 40 Thermal 3101 | . . . 3101 Explosive . | . . . . Electromagnetic . | . . . . Impact 11 | . . . 11 Slashing . | . . . . Piercing . | . . . . Highest Corruption 8 | . . . 8 Average Corruption 2 | . . . 2 Corruption Purged . | . . . . Corruption Blocked . | . . . . Effects 31 | . . . 31 Message Errors 7 | . . . 7 Matter Fused 4 | . . . 4 Heat Flow Errors 1 | . . . 1 Energy Discharges 3 | . . . 3 Parts Rejected 1 | . . . 1 Parts Fused 2 | . . . 2 Data Loss (minor) 3 | . . . 3 Data Loss (major) 5 | . . . 5 Misfires 3 | . . . 3 Alerts 1 | . . . 1 Weapon Failures 1 | . . . 1 Overload Shots . | . . . . Overflow Damage 3 | . . . 3 Projectiles . | . . . . Explosions . | . . . . Melee 3 | . . . 3 Knockbacks . | . . . . Impact . | . . . . Kinetic . | . . . . Secondary . | . . . . Self-Inflicted Damage . | . . . . Shots . | . . . . Rammed 8 | . 3 1 4 Targets Rammed 10 | . 3 1 6 Kicked . | . . . . Crushed 2 | . . . 2 Highest Temperature 519 | . 28 2 519 Average Temperature 147 | . 11 2 154 Received Heat Transfer 1092 | . 327 24 741 Effects 17 | . . . 17 Shutdowns 2 | . . . 2 Energy Bleed 1 | . . . 1 Interference 8 | . . . 8 Matter Decay 2 | . . . 2 Damage (minor) 3 | . . . 3 Damage (core) 1 | . . . 1 Siege Activations . | . . . . Martial Activations . | . . . . Shielding Activations . | . . . . Robots Disrupted . | . . . . Combat Hostiles . | . . . . Robots Corrupted 1 | . . . 1 Combat Hostiles . | . . . . Parts Fried 2 | . . . 2 Impact Corruptions 1 | . . . 1 Robots Melted 5 | . . . 5 Combat Hostiles 4 | . . . 4 Parts Melted 25 | . . . 25 Heat Transferred 8473 | . . . 8473 Parts Sabotaged . | . . . . Parts Stolen . | . . . . Parts Stripped . | . . . . Power Chain Reactions . | . . . . Alert | -11 -10 -10 -9 ------- Run | Yrd Mat Min Mat Maximum Alert Level 2 | . . . 2 Low Security (%) 83 | 100 100 100 71 Level 1 9 | . . . 15 Level 2 7 | . . . 12 Level 3 . | . . . . Level 4 . | . . . . Level 5 . | . . . . High Security . | . . . . Max Security . | . . . . Peak Influence 589 | . 80 85 589 Initial 21 | . . 1 21 Average 103 | . 23 23 157 Influence Increases 1758 | . 387 115 1256 Destroy 0b10 Robot/C 1100 | . 220 80 800 Destroy 0b10 Robot/NC 125 | . 25 . 100 Destroy Leader 264 | . 48 20 196 Successful Hack 69 | . 48 . 21 Disable Machine 15 | . . . 15 Destroy Structure 5 | . 1 . 4 Lose Combat Pursuer 180 | . 45 15 120 Influence Decreases 1190 | . 382 65 743 Entered New Map 38 | . . 4 34 Time Decay 999 | . 369 51 579 Lost Part 150 | . 10 10 130 Purge Threat 3 | . 3 . . Squads Dispatched 8 | . . . 8 Investigation 3 | . . . 3 Extermination . | . . . . Reinforcement 4 | . . . 4 Assault 1 | . . . 1 Garrison . | . . . . Intercept . | . . . . Searches Triggered . | . . . . Construction Impeded . | . . . . Haulers Reinforced . | . . . . Active Scanning Responses . | . . . . Cargo Convoy Interrupts . | . . . . Stealth | -11 -10 -10 -9 --------- Run | Yrd Mat Min Mat Distress Signals 9 | . 2 . 7 Communications Jammed . | . . . . Distress Signals . | . . . . Times Spotted 96 | . 20 5 71 Peak Tracking Total 7 | . 5 3 7 Tactical Retreats 10 | . 2 1 7 Traps | -11 -10 -10 -9 ------- Run | Yrd Mat Min Mat Traps Triggered 2 | . 1 . 1 Indirectly . | . . . . Trap Hack Attempts . | . . . . Triggered . | . . . . Disarmed . | . . . . Reprogrammed . | . . . . Reused . | . . . . Traps Extracted . | . . . . Installed . | . . . . Triggered . | . . . . Machines | -11 -10 -10 -9 ---------- Run | Yrd Mat Min Mat Machines Disabled 1 | . . . 1 Max in Single Turn 1 | . . . 1 Machines Repaired . | . . . . Machines Dismantled . | . . . . Machines Sabotaged . | . . . . Overloaded Fab Kills . | . . . . Hacking | -11 -10 -10 -9 --------- Run | Yrd Mat Min Mat Machines Accessed 17 | . 9 . 8 Terminals 14 | . 8 . 6 Fabricators . | . . . . Repair Stations 1 | . 1 . . Recycling Units . | . . . . Scanalyzers 2 | . . . 2 Garrison Access . | . . . . Total Hacks 49 | . 23 . 26 Successful 32 | . 16 . 16 Failed 16 | . 7 . 9 Catastrophic 3 | . 1 . 2 Database Lockouts 1 | . . . 1 Manual 36 | . 19 . 17 Terminals 36 | . 19 . 17 Fabricators . | . . . . Repair Stations 4 | . 4 . . Recycling Units . | . . . . Scanalyzers 9 | . . . 9 Garrison Access . | . . . . Terminal Hacks 6 | . 4 . 2 Branch Access Points 2 | . 1 . 1 Terminal Index 2 | . 1 . 1 Unreport Threat 1 | . 1 . . Locate Traps 1 | . 1 . . Fabricator Hacks . | . . . . Repair Station Hacks 4 | . 4 . . Scan Component 2 | . 2 . . Repair 2 | . 2 . . Recycling Unit Hacks . | . . . . Scanalyzer 8 | . . . 8 Insert Component 3 | . . . 3 Analyze 3 | . . . 3 Retrieve Study 2 | . . . 2 Garrison Access Hacks . | . . . . Unauthorized Hacks 14 | . 8 . 6 Terminals 14 | . 8 . 6 Botnet 13 | . 7 . 6 Operators 1 | . 1 . . Fabricators . | . . . . Repair Stations . | . . . . Recycling Units . | . . . . Scanalyzers . | . . . . Garrison Access . | . . . . Data Cores Recovered . | . . . . Used . | . . . . Hacking Detections 10 | . 2 . 8 Full Trace Events 3 | . . . 3 Feedback Events . | . . . . Feedback Blocked . | . . . . Robot Schematics Acquired . | . . . . Robots Built . | . . . . Authchips . | . . . . Time . | . . . . Total Robot Build Rating . | . . . . Part Schematics Acquired 3 | . . . 3 Parts Built . | . . . . Authchips . | . . . . Time . | . . . . Total Part Build Rating . | . . . . Part Studies Acquired 2 | . . . 2 Parts Repaired 2 | . 2 . . Time 52 | . 52 . . Parts Recycled . | . . . . Recycled Matter . | . . . . Retrieved Matter . | . . . . Retrieved Components . | . . . . Parts Scanalyzed 3 | . . . 3 Part Schematics Acquired 3 | . . . 3 Parts Damaged . | . . . . Bothacking | -11 -10 -10 -9 ------------ Run | Yrd Mat Min Mat Used RIF Installer . | . . . . Robots Hacked . | . . . . Non-combat . | . . . . Combat . | . . . . Robot Hacks Applied . | . . . . Relay Couplers Released . | . . . . Fabnet Peak Effective % . | . . . . Robots Rewired . | . . . . Allies Hacked . | . . . . Hacks Repelled . | . . . . Allies | -11 -10 -10 -9 -------- Run | Yrd Mat Min Mat Total Allies . | . . . . Largest Group . | . . . . Highest-Rated Group . | . . . . Highest-Rated Ally . | . . . . Total Orders . | . . . . Ally Attacks . | . . . . Total Damage . | . . . . Kills . | . . . . Allies Corrupted . | . . . . Allies Melted . | . . . . Intel | -11 -10 -10 -9 ------- Run | Yrd Mat Min Mat Active Infowar (turns) 4690 | . 1520 232 2938 T.N.C. 4690 | . 1520 232 2938 Robot Analysis Total . | . . . . Derelict Logs Recovered 1 | . . 1 . Drone Launches . | . . . . Drone Recoveries . | . . . . Exploration | -11 -10 -10 -9 ------------- Run | Yrd Mat Min Mat Turns Passed 4931 | 64 1688 232 2947 Spaces Moved 1681 | 36 608 89 948 Core 20 | 20 . . . Treads 1477 | 16 608 42 811 Legs . | . . . . Wheels 184 | . . 47 137 Hover . | . . . . Flight . | . . . . Fastest Speed 50 | 50 160 135 135 Average Speed 237 | 141 243 225 238 Slowest Speed 480 | 200 480 480 480 Overloaded Moves . | . . . . Propulsion Burnouts . | . . . . Robots Hopped . | . . . . Potential Cave-ins . | . . . . Cave-ins Triggered . | . . . . Exploration Rate (%) 49 | 3 97 24 74 Regions Visited 3 Branch Regions 1 Pre-discovered Areas . | . . . . Known Exits Taken 1 | . 1 . . Unknown Exits Taken 2 | 1 . 1 . Scrap Searched 1 | . . 1 . Spaces Dug . | . . . . Terrain Destroyed . | . . . . Melee . | . . . . Projectile . | . . . . AOE . | . . . . Terrain Rammed . | . . . . Walls Destroyed . | . . . . Machines Disabled . | . . . . Actions | -11 -10 -10 -9 --------- Run | Yrd Mat Min Mat Total 2224 | 46 729 103 1346 Wait 173 | . 35 5 133 Move 1678 | 35 607 88 948 Hop . | . . . . Pick Up 45 | 3 22 . 20 Fast Attach 16 | 6 5 . 5 Attach 11 | . 2 1 8 Detach . | . . . . Swap 22 | 1 3 1 17 Drop 26 | 1 3 . 22 Fire 240 | . 49 7 184 Melee 3 | . . . 3 Ram . | . . . . Kick . | . . . . Crush 10 | . 3 1 6 Escape Stasis . | . . . . Rewire . | . . . . Trap . | . . . . Miscellaneous . | . . . . Route ------- -11/Scrapyard -10/Materials (discovered 4 exits: *Mat x3 / *Min) -10/Mines -9/Materials (discovered 2 exits: [*Mat] / *Min) History --------- Turn | Location | Event 29 | -11/Scrapyard | Discovered new exit (range 14) 65 | -11/Scrapyard | Entered Materials 250 | -10/Materials | Identified exit to Mines 307 | -10/Materials | Build established: Mutant 660 | -10/Materials | Discovered new exit (range 3) 1013 | -10/Materials | Repaired Lgt. Treads 1039 | -10/Materials | Repaired Lgt. Treads 1105 | -10/Materials | Discovered new exit (range 16) 1509 | -10/Materials | Discovered new exit (range 16) 1753 | -10/Materials | Entered Mines 1881 | -10/Mines | Discovered new exit (range 11) 1985 | -10/Mines | Entered Materials 1985 | -9/Materials | Evolved 2 slots: Propulsion x1, Utility x1 2103 | -9/Materials | Discovered new exit (range 12) 2548 | -9/Materials | Build established: Scavenger-Mutant 3275 | -9/Materials | Identified exit to Mines 3527 | -9/Materials | Discovered new exit (range 16) 3710 | -9/Materials | Central database locked down 4785 | -9/Materials | First assault squad dispatched 4865 | -9/Materials | Core integrity fell below 50% 4878 | -9/Materials | Lost 3 parts (2n1u) 4917 | -9/Materials | Core integrity fell below 20% 4932 | -9/Materials | Destroyed by Y-45 Defender with Heavy Assault Rifle Last Messages --------------- U-05 Engineer builds a Door. G-34 Mercenary destroyed. Switching to secondary target: S-10 Pest. S-10 Pest destroyed. Switching to secondary target: S-10 Pest. Critical hit (Destroy). Lgt. Treads destroyed. Overheating: Energy bleed (-67). S-10 Pest destroyed. Imp. Medium Laser destroyed. System corrupted: Energy discharge (-84). Overheating: Core damaged (-76). Acquired 13 matter. Overheating: System interference. Transport Network Coupler temporarily disabled. Imp. Medium Laser temporarily disabled. Hvy. Ion Engine destroyed. Overheating: Huge Storage Unit damaged (-117). Lgt. Treads destroyed. System corrupted: Imp. Medium Laser rejected. Map ----- +----------------------------------------------------+ | # + T %+% + | | # """ # ###"""% ! # ! | | # """"" # ##### #?## " =% #%! | | # """"" #######???## ##?# " * #!% | | # """"" #??????????# #?#########!"# | | # """ #??????????# % #?# =*# # | | # *%#??????????# #?# %####% | | # ] #??????????#[%%### + % | | # #??????????# # #### | | #######+#??????????# % # #??## | | ??????# #??????????# %+ #???# | | ??????# #??????????# * #% #???# | | ??????# #??????????# % # #???# | | ??????# #??????????## ## #???# | | ??????# #???????????# ## #???# | | ??????# #???????????# ## #???# | | ??????# #???????????# ##########???# | | ?????##=#######?????# #????????????# | | ?????# # ???# #????????????? | | ?????# # """ ## #????????????? | | ?????# # """"" ## ?????????????? | | ?##### # """"" ## ??????????????? | | ?#!! # """"" ## ??????????????? | | ?#!! # """ ## ??????????????? | | ?#!! # == ## ??????????????? | | ?#!! # =%@[ #??????????????????? | | ?#]] ####Y######??????????????????? | | ?#]] ## *%[[##### #?????????????? | | ?##### == #?????????????? | | ?????# m % %* #?????????????? | | ?????# = " ?????????? | | ????####+## ##### % # ????????? | | ???# = ## ####????? #????"????????? | | ???# ## #??????????#?????????????? | | ???#""" ## #????????????????????????? | | ???#""" ## #????????????????????????? | | ???#""" ## #????????????????????????? | | ???# ## #????????????????????????? | | ???######### #????????????????????????? | | ???????????# #????????????????????????? | | ???????????? #????????????????????????? | | ???????????? ?????????????????????????? | | ???????????? ?????????????????????????? | | ??????????????????????????????????????? | | ??????????????????????????????????????? | | ??????????????????????????????????????? | | ??????????????????????????????????????? | | ??????????????????????????????????????? | | ??????????????????????????????????????? | | ??????????????????????????????????????? | +----------------------------------------------------+ Best States ------------- Heat Dissipation 28 Energy Generation 14 Energy Capacity 280 Matter Stores 300 Matter Capacity 300 Sight Range 16 Terrain Scan Density 10 Armor Coverage 150 Evasion (%) 50 Recoil Reduction 3 Item Schematics ----------------- Mni. Grenade Launcher | -9/Materials | Scanalyzed Hacking Suite | -9/Materials | Scanalyzed Seismic Detector | -9/Materials | Scanalyzed Robot Schematics ------------------ None Fabricated ------------ Nothing Repaired ---------- Lgt. Treads | 39% | -10/Materials Studied --------- Mni. Grenade Launcher | -9/Materials | Hacked Imp. Ion Engine | -9/Materials | Hacked Alien Tech Used ----------------- None Achievements -------------- None Challenges ------------ None Game ------ Seed SchematicRefineryBroadsword Manual? 0 Play Time 00:21:53 Cumulative 14.4 hours Start 2026.01.10 @ 13:37:49 End 2026.01.10 @ 13:58:05 Sessions 1 Manual Loads 0 Difficulty Rogue Special Mode None Game No. 20 Rogue 20 Adventurer 0 Explorer 0 Win Type - Total 0 Types 0/0/0/0/0/0/0/0/0/0 Lore% 9 Gallery% 21 Achievement% 23 Wizard Run 0 Options --------- Layout 1 ASCII 0 Keyboard 1 Movement Vi Keybinds 0 Fullscreen 1 Font 24/Smallcaps Map View 50x35 Zoom Use 0% Tactical HUD 0 Map Filters NONE Filters NONE Steam 1 RUN: 20b9bab5-a14d-4579-8282-7f3e1e8f4554